[Event "RUS-ch Blitz Women 2018"]
[Site "Sochi"]
[Date "2018.10.07"]
[Round "2"]
[White "Smirnova, Ekaterina"]
[Black "Charochkina, Daria"]
[Result "0-1"]
[ECO "A80"]
[WhiteElo "2202"]
[BlackElo "2344"]
[Annotator "NA"]
[PlyCount "78"]
[EventDate "2018.10.07"]
[EventType "swiss"]
[EventCountry "RUS"]
[SourceTitle "playchess.com"]
[Source "ChessBase"]
[SourceQuality "1"]
[TimeControl "180+2"]

1. d4 {[%emt 0:00:00]} f5 {[%emt 0:00:00]} 2. Nc3 {[%emt 0:00:00]} Nf6 {[%emt 0:00:00]} 3. Bg5 {[%emt 0:00:02]} c6 {[%emt 0:00:01]} 4. Qd3 {[%emt 0:00:01]} d5 {[%emt 0:00:01]} 5. f3 {[%emt 0:00:02]} e6 {[%emt 0:00:09]} 6. e3 {[%emt 0:00:14]} b5 {[%emt 0:00:19]} 7. Nge2 {[%emt 0:00:13]} Be7 {[%emt 0:00:09]} 8. Nf4 {[%emt 0:00:16]} O-O {[%emt 0:00:08]} 9. Be2 {[%emt 0:00:02]} h6 {[%emt 0:00:05]} 10. Bxf6 {[%emt 0:00:04]} Bxf6 {[%emt 0:00:01]} 11. Ng6 {[%emt 0:00:07]} Re8 {[%emt 0:00:08]} 12. f4 {[%emt 0:00:07]} b4 {[%emt 0:00:14]} 13. Na4 {[%emt 0:00:18]} Ba6 {[%emt 0:00:01]} 14. Qd2 {[%emt 0:00:01]} Bxe2 {[%emt 0:00:07]} 15. Qxe2 {[%emt 0:00:01]} Nd7 {[%emt 0:00:02]} 16. O-O {[%emt 0:00:13]} c5 {[%emt 0:00:18]} 17. Ne5 {[%emt 0:00:18]} Bxe5 {[%emt 0:00:07]} 18. fxe5 {[%emt 0:00:20]} c4 {[%emt 0:00:19]} 19. b3 {[%emt 0:00:03]} Rc8 {[%emt 0:00:05]} 20. Rad1 {[%emt 0:00:08]} Qa5 {[%emt 0:00:05]} 21. Rf3 {[%emt 0:00:06]} Qd8 {[%emt 0:00:18]} 22. Rg3 {[%emt 0:00:17]} Qe7 {[%emt 0:00:00]} 23. bxc4 {[%emt 0:00:18]} Rxc4 {[%emt 0:00:06]} 24. Nb2 {[%emt 0:00:03]} Rc3 {[%emt 0:00:03]} 25. Nd3 {[%emt 0:00:03]} Rec8 {[%emt 0:00:02]} 26. Rd2 {[%emt 0:00:01]} Nf8 {[%emt 0:00:37]} 27. Qh5 {[%emt 0:00:03]} Qf7 {[%emt 0:00:04]} 28. Qxh6 {[%emt 0:00:04]} Rxc2 {[%emt 0:00:03]} 29. Rxc2 {[%emt 0:00:03]} Rxc2 {[%emt 0:00:01]} 30. Nf4 {[%emt 0:00:05]} Rc1+ {[%emt 0:00:01]} 31. Kf2 {[%emt 0:00:00]} Qc7 {[%emt 0:00:01]} 32. Qg5 {[%emt 0:00:13]} Rc2+ {[%emt 0:00:06]} 33. Ne2 {[%emt 0:00:03]} Rxa2 {[%emt 0:00:02]} 34. h4 {[%emt 0:00:06]} b3 {[%emt 0:00:00]} 35. h5 {[%emt 0:00:02]} b2 {[%emt 0:00:01]} 36. h6 {[%emt 0:00:02]} b1=Q {[%emt 0:00:02]} 37. hxg7 {[%emt 0:00:07]} Rxe2+ {[%emt 0:00:02]} 38. Kxe2 {[%emt 0:00:03]} Qcc2+ {[%emt 0:00:00]} 39. Kf3 {[%emt 0:00:02]} Qf1# {[%emt 0:00:01]} 0-1

[Event "RUS-ch Blitz Women 2018"]
[Site "Sochi"]
[Date "2018.10.07"]
[Round "2"]
[White "Chernyak, Viktoria"]
[Black "Garifullina, Leya"]
[Result "1-0"]
[ECO "A06"]
[WhiteElo "2200"]
[BlackElo "2106"]
[Annotator "NA"]
[PlyCount "139"]
[EventDate "2018.10.07"]
[EventType "swiss"]
[EventCountry "RUS"]
[SourceTitle "playchess.com"]
[Source "ChessBase"]
[SourceQuality "1"]
[TimeControl "180+2"]

1. Nf3 {[%emt 0:00:00]} d5 {[%emt 0:00:00]} 2. g3 {[%emt 0:00:00]} Nf6 {[%emt 0:00:00]} 3. Bg2 e6 4. O-O {[%emt 0:00:02]} Be7 {[%emt 0:00:01]} 5. c4 {[%emt 0:00:01]} O-O {[%emt 0:00:02]} 6. d3 {[%emt 0:00:08]} c5 {[%emt 0:00:09]} 7. cxd5 {[%emt 0:00:09]} exd5 {[%emt 0:00:03]} 8. a3 {[%emt 0:00:22]} Nc6 {[%emt 0:00:02]} 9. Qc2 {[%emt 0:00:11]} Be6 {[%emt 0:00:01]} 10. e4 {[%emt 0:00:05]} dxe4 {[%emt 0:00:27]} 11. dxe4 {[%emt 0:00:02]} h6 {[%emt 0:00:01]} 12. Be3 {[%emt 0:00:03]} Rc8 {[%emt 0:00:11]} 13. Rd1 {[%emt 0:00:15]} Qa5 {[%emt 0:00:01]} 14. Nc3 {[%emt 0:00:05]} Qa6 {[%emt 0:00:18]} 15. h3 {[%emt 0:00:06]} c4 {[%emt 0:00:05]} 16. Nd4 {[%emt 0:00:07]} Nxd4 {[%emt 0:00:03]} 17. Bxd4 {[%emt 0:00:02]} Nd7 {[%emt 0:00:12]} 18. Kh2 {[%emt 0:00:18]} Bc5 {[%emt 0:00:04]} 19. f4 f6 {[%emt 0:00:12]} 20. Qf2 {[%emt 0:00:13]} Bxd4 {[%emt 0:00:03]} 21. Rxd4 {[%emt 0:00:04]} Nc5 {[%emt 0:00:01]} 22. Rad1 {[%emt 0:00:23]} Nd3 {[%emt 0:00:01]} 23. Qd2 {[%emt 0:00:26]} Qb6 {[%emt 0:00:01]} 24. Ne2 {[%emt 0:00:01]} Qxb2 {[%emt 0:00:05]} 25. Rxd3 {[%emt 0:00:05]} Qxd2 {[%emt 0:00:12]} 26. R3xd2 {[%emt 0:00:01]} c3 {[%emt 0:00:01]} 27. Rd6 {[%emt 0:00:07]} Bb3 {[%emt 0:00:07]} 28. Rc1 {[%emt 0:00:00]} c2 {[%emt 0:00:01]} 29. Nd4 {[%emt 0:00:02]} Ba4 30. Nf5 {[%emt 0:00:15]} Rc3 {[%emt 0:00:18]} 31. Rd2 {[%emt 0:00:13]} b5 {[%emt 0:00:07]} 32. Nd4 {[%emt 0:00:07]} Rfc8 {[%emt 0:00:01]} 33. e5 {[%emt 0:00:01]} fxe5 {[%emt 0:00:04]} 34. fxe5 {[%emt 0:00:01]} a5 {[%emt 0:00:00]} 35. Bd5+ {[%emt 0:00:01]} Kh8 {[%emt 0:00:03]} 36. e6 {[%emt 0:00:00]} b4 {[%emt 0:00:01]} 37. axb4 {[%emt 0:00:02]} axb4 {[%emt 0:00:00]} 38. e7 {[%emt 0:00:03]} b3 {[%emt 0:00:01]} 39. Bxb3 {[%emt 0:00:01]} Be8 {[%emt 0:00:45]} 40. Rdxc2 {[%emt 0:00:03]} Rxc2+ {[%emt 0:00:01]} 41. Rxc2 {[%emt 0:00:01]} Rxc2+ {[%emt 0:00:01]} 42. Nxc2 {[%emt 0:00:01]} Kh7 {[%emt 0:00:01]} 43. Nd4 {[%emt 0:00:02]} Kg6 {[%emt 0:00:01]} 44. Ne6 {[%emt 0:00:06]} Kf6 {[%emt 0:00:03]} 45. Nc7 {[%emt 0:00:01]} Kxe7 {[%emt 0:00:01]} 46. Nxe8 {[%emt 0:00:02]} Kxe8 {[%emt 0:00:01]} 47. g4 {[%emt 0:00:02]} Ke7 {[%emt 0:00:02]} 48. Kg3 {[%emt 0:00:02]} Kf6 {[%emt 0:00:09]} 49. Kf4 {[%emt 0:00:01]} Kg6 {[%emt 0:00:04]} 50. h4 {[%emt 0:00:02]} Kh7 {[%emt 0:00:09]} 51. Ke5 {[%emt 0:00:02]} Kh8 {[%emt 0:00:01]} 52. Bc2 {[%emt 0:00:02]} Kg8 {[%emt 0:00:01]} 53. Bg6 {[%emt 0:00:04]} Kh8 {[%emt 0:00:02]} 54. Kd6 {[%emt 0:00:01]} Kg8 {[%emt 0:00:06]} 55. Ke7 {[%emt 0:00:01]} Kh8 {[%emt 0:00:01]} 56. Kf8 {[%emt 0:00:03]} h5 {[%emt 0:00:00]} 57. Bxh5 {[%emt 0:00:02]} Kh7 {[%emt 0:00:01]} 58. Bf7 {[%emt 0:00:04]} Kh8 {[%emt 0:00:02]} 59. Ba2 {[%emt 0:00:03]} Kh7 {[%emt 0:00:01]} 60. Kf7 {[%emt 0:00:01]} Kh8 {[%emt 0:00:01]} 61. Bb3 {[%emt 0:00:07]} Kh7 {[%emt 0:00:02]} 62. Ba4 {[%emt 0:00:01]} Kh8 {[%emt 0:00:01]} 63. Kg6 {[%emt 0:00:01]} Kg8 {[%emt 0:00:01]} 64. h5 {[%emt 0:00:01]} Kh8 {[%emt 0:00:01]} 65. Kf7 {[%emt 0:00:04]} Kh7 {[%emt 0:00:01]} 66. Bb5 {[%emt 0:00:01]} Kh8 {[%emt 0:00:13]} 67. Kg6 {[%emt 0:00:01]} Kg8 {[%emt 0:00:01]} 68. Bd3 {[%emt 0:00:05]} Kh8 {[%emt 0:00:02]} 69. Kf7 {[%emt 0:00:03]} g5 {[%emt 0:00:02]} 70. Kf6 {[%emt 0:00:02]} 1-0

[Event "RUS-ch Blitz Women 2018"]
[Site "Sochi"]
[Date "2018.10.07"]
[Round "2"]
[White "Sirotkina, Nina"]
[Black "Kashlinskaya, Alina"]
[Result "1-0"]
[ECO "A45"]
[WhiteElo "2188"]
[BlackElo "2447"]
[Annotator "NA"]
[PlyCount "73"]
[EventDate "2018.10.07"]
[EventType "swiss"]
[EventCountry "RUS"]
[SourceTitle "playchess.com"]
[Source "ChessBase"]
[SourceQuality "1"]
[TimeControl "180+2"]

1. d4 {[%emt 0:00:00]} Nf6 {[%emt 0:00:00]} 2. Bf4 {[%emt 0:00:00]} g6 {[%emt 0:00:00]} 3. Nd2 {[%emt 0:00:01]} d5 {[%emt 0:00:02]} 4. e3 {[%emt 0:00:01]} Bg7 {[%emt 0:00:01]} 5. h3 {[%emt 0:00:04]} O-O {[%emt 0:00:02]} 6. Ngf3 {[%emt 0:00:01]} b6 {[%emt 0:00:08]} 7. Bd3 {[%emt 0:00:05]} c5 {[%emt 0:00:01]} 8. c3 {[%emt 0:00:06]} Ba6 {[%emt 0:00:11]} 9. Bxa6 Nxa6 {[%emt 0:00:01]} 10. Qe2 {[%emt 0:00:13]} Nb8 {[%emt 0:00:14]} 11. O-O {[%emt 0:00:20]} Nc6 {[%emt 0:00:01]} 12. Ne5 {[%emt 0:00:09]} Nxe5 {[%emt 0:00:22]} 13. Bxe5 {[%emt 0:00:02]} Qd7 {[%emt 0:00:21]} 14. Rfd1 {[%emt 0:00:13]} Qc6 {[%emt 0:00:33]} 15. Nf3 {[%emt 0:00:13]} a5 {[%emt 0:00:04]} 16. a4 {[%emt 0:00:04]} c4 {[%emt 0:00:04]} 17. Ne1 {[%emt 0:00:37]} b5 {[%emt 0:00:00]} 18. axb5 {[%emt 0:00:34]} Qxb5 {[%emt 0:00:01]} 19. Ra2 {[%emt 0:00:02]} Nd7 {[%emt 0:00:11]} 20. Bxg7 {[%emt 0:00:05]} Kxg7 {[%emt 0:00:01]} 21. Rda1 {[%emt 0:00:03]} Rfb8 {[%emt 0:00:13]} 22. e4 {[%emt 0:00:05]} e6 {[%emt 0:00:21]} 23. exd5 {[%emt 0:00:30]} exd5 {[%emt 0:00:01]} 24. Nc2 {[%emt 0:00:02]} Re8 {[%emt 0:00:06]} 25. Qf3 {[%emt 0:00:02]} Nf6 {[%emt 0:00:08]} 26. Ne3 {[%emt 0:00:02]} Ne4 {[%emt 0:00:04]} 27. h4 {[%emt 0:00:04]} h5 {[%emt 0:00:07]} 28. Qf4 {[%emt 0:00:01]} Ra6 {[%emt 0:00:06]} 29. Qc7 {[%emt 0:00:09]} Rf6 {[%emt 0:00:07]} 30. f3 {[%emt 0:00:04]} Nxc3 {[%emt 0:00:12]} 31. bxc3 {[%emt 0:00:04]} Rxe3 {[%emt 0:00:01]} 32. Qxa5 {[%emt 0:00:04]} Qd7 {[%emt 0:00:07]} 33. Qb4 {[%emt 0:00:02]} Qf5 {[%emt 0:00:03]} 34. Ra8 {[%emt 0:00:02]} Rfe6 {[%emt 0:00:08]} 35. Qf8+ {[%emt 0:00:02]} Kf6 {[%emt 0:00:01]} 36. Qh8+ {[%emt 0:00:02]} Ke7 {[%emt 0:00:00]} 37. Qd8# {[%emt 0:00:01]} 1-0

[Event "RUS-ch Blitz Women 2018"]
[Site "Sochi"]
[Date "2018.10.07"]
[Round "2"]
[White "Faizutdinova, Diana"]
[Black "Dordzhieva, Dinara"]
[Result "0-1"]
[ECO "A13"]
[WhiteElo "2061"]
[BlackElo "2340"]
[Annotator "NA"]
[PlyCount "44"]
[EventDate "2018.10.07"]
[EventType "swiss"]
[EventCountry "RUS"]
[SourceTitle "playchess.com"]
[Source "ChessBase"]
[SourceQuality "1"]
[TimeControl "180+2"]

1. c4 {[%emt 0:00:00]} e6 {[%emt 0:00:00]} 2. e4 {[%emt 0:00:02]} c5 {[%emt 0:00:02]} 3. Nc3 {[%emt 0:00:02]} Nc6 {[%emt 0:00:02]} 4. Nf3 {[%emt 0:00:02]} Nf6 {[%emt 0:00:02]} 5. Be2 {[%emt 0:00:02]} Nd4 {[%emt 0:00:02]} 6. O-O {[%emt 0:00:02]} d6 {[%emt 0:00:02]} 7. d3 {[%emt 0:00:07]} Nxe2+ {[%emt 0:00:20]} 8. Nxe2 {[%emt 0:00:10]} Be7 {[%emt 0:00:00]} 9. b3 {[%emt 0:00:01]} e5 {[%emt 0:00:04]} 10. Nc3 {[%emt 0:00:03]} O-O {[%emt 0:00:01]} 11. h3 {[%emt 0:00:03]} h6 {[%emt 0:00:01]} 12. Nd5 {[%emt 0:00:03]} Nxd5 {[%emt 0:00:02]} 13. cxd5 {[%emt 0:00:09]} f5 {[%emt 0:00:01]} 14. Re1 {[%emt 0:00:36]} Qe8 {[%emt 0:00:07]} 15. Nh2 {[%emt 0:00:25]} Qg6 {[%emt 0:00:13]} 16. f4 {[%emt 0:00:10]} fxe4 {[%emt 0:00:14]} 17. fxe5 {[%emt 0:00:01]} Bxh3 {[%emt 0:00:07]} 18. g4 {[%emt 0:00:12]} Bh4 {[%emt 0:00:11]} 19. Re3 {[%emt 0:00:05]} Bf2+ {[%emt 0:00:02]} 20. Kh1 {[%emt 0:00:01]} Bxe3 {[%emt 0:00:03]} 21. Bxe3 {[%emt 0:00:02]} exd3 {[%emt 0:00:02]} 22. e6 {[%emt 0:00:07]} Qe4+ {[%emt 0:00:01]} 0-1

[Event "RUS-ch Blitz Women 2018"]
[Site "Sochi"]
[Date "2018.10.07"]
[Round "2"]
[White "Kirchei, Viktoriia"]
[Black "Guseva, Marina"]
[Result "1-0"]
[ECO "A00"]
[WhiteElo "2002"]
[BlackElo "2292"]
[Annotator "NA"]
[PlyCount "121"]
[EventDate "2018.10.07"]
[EventType "swiss"]
[EventCountry "RUS"]
[SourceTitle "playchess.com"]
[Source "ChessBase"]
[SourceQuality "1"]
[TimeControl "180+2"]

1. d3 {[%emt 0:00:00]} d5 {[%emt 0:00:00]} 2. g3 {[%emt 0:00:01]} Nf6 {[%emt 0:00:02]} 3. Bg2 {[%emt 0:00:00]} c6 {[%emt 0:00:02]} 4. Nd2 {[%emt 0:00:02]} h6 {[%emt 0:00:06]} 5. e3 {[%emt 0:00:01]} Bg4 {[%emt 0:00:04]} 6. Ne2 {[%emt 0:00:10]} e6 {[%emt 0:00:02]} 7. h3 {[%emt 0:00:04]} Bf5 {[%emt 0:00:03]} 8. O-O {[%emt 0:00:12]} Be7 {[%emt 0:00:01]} 9. f4 {[%emt 0:00:21]} Bc5 {[%emt 0:00:19]} 10. Nb3 {[%emt 0:00:04]} Bb6 {[%emt 0:00:02]} 11. Kh2 {[%emt 0:00:15]} O-O {[%emt 0:00:03]} 12. g4 {[%emt 0:00:07]} Bh7 {[%emt 0:00:10]} 13. Ng3 {[%emt 0:00:07]} Nbd7 {[%emt 0:00:48]} 14. Qe2 {[%emt 0:00:29]} e5 {[%emt 0:00:19]} 15. f5 {[%emt 0:00:01]} e4 {[%emt 0:00:05]} 16. d4 {[%emt 0:00:01]} Bc7 {[%emt 0:00:03]} 17. Qf2 {[%emt 0:00:39]} Bd6 {[%emt 0:00:10]} 18. Kh1 {[%emt 0:00:07]} Qc7 {[%emt 0:00:01]} 19. Ne2 {[%emt 0:00:05]} b6 {[%emt 0:00:09]} 20. c3 {[%emt 0:00:02]} c5 {[%emt 0:00:01]} 21. Nd2 {[%emt 0:00:02]} cxd4 {[%emt 0:00:03]} 22. cxd4 {[%emt 0:00:06]} Rac8 {[%emt 0:00:01]} 23. Nb3 {[%emt 0:00:25]} a5 {[%emt 0:00:11]} 24. Bd2 {[%emt 0:00:04]} a4 {[%emt 0:00:03]} 25. Rac1 {[%emt 0:00:03]} Qb7 {[%emt 0:00:04]} 26. Na1 {[%emt 0:00:02]} Rxc1 {[%emt 0:00:11]} 27. Rxc1 {[%emt 0:00:00]} Rc8 {[%emt 0:00:01]} 28. Nc3 {[%emt 0:00:01]} a3 {[%emt 0:00:14]} 29. bxa3 {[%emt 0:00:11]} Bxa3 {[%emt 0:00:02]} 30. Rb1 {[%emt 0:00:01]} Qc6 {[%emt 0:00:17]} 31. Rb3 {[%emt 0:00:02]} Bd6 {[%emt 0:00:01]} 32. Nc2 {[%emt 0:00:01]} Bb8 {[%emt 0:00:02]} 33. Nb4 {[%emt 0:00:03]} Qd6 {[%emt 0:00:01]} 34. Bf1 {[%emt 0:00:06]} h5 {[%emt 0:00:11]} 35. g5 {[%emt 0:00:03]} Ne8 {[%emt 0:00:03]} 36. Nb5 {[%emt 0:00:04]} Qe7 {[%emt 0:00:03]} 37. Be2 {[%emt 0:00:06]} Qxg5 {[%emt 0:00:01]} 38. Nxd5 {[%emt 0:00:03]} Bxf5 {[%emt 0:00:04]} 39. Qxf5 {[%emt 0:00:02]} Qxf5 {[%emt 0:00:01]} 40. Ne7+ {[%emt 0:00:01]} Kf8 {[%emt 0:00:01]} 41. Nxf5 {[%emt 0:00:00]} Rc2 {[%emt 0:00:01]} 42. Bb4+ {[%emt 0:00:03]} Kg8 {[%emt 0:00:01]} 43. Ne7+ {[%emt 0:00:01]} Kh7 {[%emt 0:00:01]} 44. Bxh5 {[%emt 0:00:02]} g6 {[%emt 0:00:03]} 45. Bg4 {[%emt 0:00:01]} f5 {[%emt 0:00:02]} 46. Nxf5 {[%emt 0:00:01]} Ndf6 {[%emt 0:00:03]} 47. Ne7 {[%emt 0:00:04]} Nxg4 {[%emt 0:00:02]} 48. hxg4 {[%emt 0:00:01]} Nf6 {[%emt 0:00:01]} 49. g5 {[%emt 0:00:02]} Ng4 {[%emt 0:00:02]} 50. Rb1 {[%emt 0:00:02]} Rh2+ {[%emt 0:00:01]} 51. Kg1 {[%emt 0:00:01]} Bg3 {[%emt 0:00:03]} 52. Be1 {[%emt 0:00:02]} Bb8 {[%emt 0:00:03]} 53. d5 {[%emt 0:00:01]} Nxe3 {[%emt 0:00:02]} 54. d6 {[%emt 0:00:07]} Rg2+ {[%emt 0:00:01]} 55. Kh1 {[%emt 0:00:00]} Rh2+ {[%emt 0:00:01]} 56. Kxh2 {[%emt 0:00:01]} Ng4+ {[%emt 0:00:03]} 57. Kg3 {[%emt 0:00:00]} Ne5 {[%emt 0:00:01]} 58. Kf4 {[%emt 0:00:02]} Nf7 {[%emt 0:00:01]} 59. Kxe4 {[%emt 0:00:01]} Nxd6+ {[%emt 0:00:01]} 60. Nxd6 {[%emt 0:00:01]} Bxd6 {[%emt 0:00:00]} 61. Rxb6 {[%emt 0:00:01]} 1-0

[Event "RUS-ch Blitz Women 2018"]
[Site "Sochi"]
[Date "2018.10.07"]
[Round "2"]
[White "Pavlova, Natalia"]
[Black "Vasilevich, Tatjana"]
[Result "0-1"]
[ECO "A06"]
[WhiteElo "1978"]
[BlackElo "2360"]
[Annotator "NA"]
[PlyCount "60"]
[EventDate "2018.10.07"]
[EventType "swiss"]
[EventCountry "RUS"]
[SourceTitle "playchess.com"]
[Source "ChessBase"]
[SourceQuality "1"]
[TimeControl "180+2"]

1. Nf3 {[%emt 0:00:00]} Nf6 {[%emt 0:00:00]} 2. c4 {[%emt 0:00:00]} e6 {[%emt 0:00:00]} 3. b3 {[%emt 0:00:07]} d5 {[%emt 0:00:01]} 4. e3 {[%emt 0:00:01]} c5 {[%emt 0:00:02]} 5. Bb2 {[%emt 0:00:01]} Nc6 {[%emt 0:00:00]} 6. Be2 {[%emt 0:00:02]} d4 {[%emt 0:00:08]} 7. exd4 {[%emt 0:00:07]} cxd4 {[%emt 0:00:01]} 8. d3 {[%emt 0:00:07]} Be7 {[%emt 0:00:05]} 9. O-O {[%emt 0:00:02]} O-O {[%emt 0:00:01]} 10. Nbd2 {[%emt 0:00:07]} e5 {[%emt 0:00:06]} 11. Re1 {[%emt 0:00:15]} Nd7 {[%emt 0:00:06]} 12. Bf1 {[%emt 0:00:12]} f6 {[%emt 0:00:17]} 13. Qc1 {[%emt 0:00:29]} Nc5 {[%emt 0:00:08]} 14. Ba3 {[%emt 0:00:31]} a5 {[%emt 0:00:16]} 15. Qb2 {[%emt 0:00:18]} Bf5 {[%emt 0:00:18]} 16. Ne4 {[%emt 0:00:19]} Bxe4 {[%emt 0:00:14]} 17. dxe4 {[%emt 0:00:01]} Nb4 {[%emt 0:00:05]} 18. Bxb4 {[%emt 0:00:04]} axb4 {[%emt 0:00:01]} 19. a3 {[%emt 0:00:01]} bxa3 {[%emt 0:00:11]} 20. Qc2 {[%emt 0:00:16]} Qb6 {[%emt 0:00:06]} 21. Bd3 {[%emt 0:00:09]} Qxb3 {[%emt 0:00:06]} 22. Red1 {[%emt 0:00:15]} Qxc2 {[%emt 0:00:08]} 23. Bxc2 {[%emt 0:00:02]} Rfd8 {[%emt 0:00:05]} 24. Ne1 {[%emt 0:00:04]} Na4 {[%emt 0:00:08]} 25. Bxa4 {[%emt 0:00:06]} Rxa4 {[%emt 0:00:01]} 26. Rdc1 {[%emt 0:00:03]} Rc8 {[%emt 0:00:02]} 27. Rd1 {[%emt 0:00:07]} Raxc4 {[%emt 0:00:02]} 28. Rd3 {[%emt 0:00:02]} Rc3 {[%emt 0:00:02]} 29. g3 {[%emt 0:00:05]} Rc1 {[%emt 0:00:02]} 30. Rxc1 {[%emt 0:00:03]} Rxc1 {[%emt 0:00:01]} 0-1

[Event "RUS-ch Blitz Women 2018"]
[Site "Sochi"]
[Date "2018.10.07"]
[Round "3"]
[White "Shuvalova, Polina"]
[Black "Kabanova, Ekaterina"]
[Result "1-0"]
[ECO "B40"]
[WhiteElo "2421"]
[BlackElo "2082"]
[Annotator "NA"]
[PlyCount "91"]
[EventDate "2018.10.07"]
[EventType "swiss"]
[EventCountry "RUS"]
[SourceTitle "playchess.com"]
[Source "ChessBase"]
[SourceQuality "1"]
[TimeControl "180+2"]

1. e4 {[%emt 0:00:00]} c5 {[%emt 0:00:00]} 2. Nf3 {[%emt 0:00:00]} e6 {[%emt 0:00:00]} 3. c3 {[%emt 0:00:01]} a6 {[%emt 0:00:00]} 4. d4 Qc7 5. Bd3 {[%emt 0:00:09]} d6 {[%emt 0:00:02]} 6. O-O {[%emt 0:00:02]} Nd7 {[%emt 0:00:02]} 7. Re1 {[%emt 0:00:02]} Be7 {[%emt 0:00:02]} 8. d5 {[%emt 0:00:07]} e5 {[%emt 0:00:07]} 9. c4 {[%emt 0:00:01]} Bf6 {[%emt 0:00:17]} 10. Nc3 {[%emt 0:00:03]} Ne7 {[%emt 0:00:01]} 11. h3 {[%emt 0:00:07]} Ng6 {[%emt 0:00:02]} 12. Nh2 {[%emt 0:00:08]} Ndf8 {[%emt 0:00:05]} 13. Ng4 {[%emt 0:00:03]} Bxg4 {[%emt 0:00:01]} 14. hxg4 {[%emt 0:00:01]} h6 {[%emt 0:00:01]} 15. g3 {[%emt 0:00:05]} Nh7 {[%emt 0:00:08]} 16. Be3 {[%emt 0:00:04]} O-O {[%emt 0:00:11]} 17. Kg2 {[%emt 0:00:03]} Rfe8 {[%emt 0:00:10]} 18. Qd2 {[%emt 0:00:03]} Qd7 {[%emt 0:00:02]} 19. Qe2 {[%emt 0:00:07]} Rab8 {[%emt 0:00:02]} 20. Rab1 {[%emt 0:00:05]} b6 {[%emt 0:00:27]} 21. a3 {[%emt 0:00:02]} Bg5 {[%emt 0:00:20]} 22. Nd1 {[%emt 0:00:02]} Nf6 {[%emt 0:00:08]} 23. Bxg5 {[%emt 0:00:10]} hxg5 {[%emt 0:00:00]} 24. Ne3 {[%emt 0:00:02]} b5 {[%emt 0:00:06]} 25. Nf5 {[%emt 0:00:11]} Ne7 {[%emt 0:00:26]} 26. Rh1 {[%emt 0:00:15]} Nxf5 {[%emt 0:00:01]} 27. gxf5 {[%emt 0:00:05]} Kf8 {[%emt 0:00:02]} 28. Qd2 {[%emt 0:00:05]} bxc4 {[%emt 0:00:05]} 29. Bc2 {[%emt 0:00:01]} g4 {[%emt 0:00:06]} 30. Qg5 {[%emt 0:00:04]} Ke7 {[%emt 0:00:01]} 31. Qxg7 {[%emt 0:00:13]} Rg8 {[%emt 0:00:01]} 32. Qh6 {[%emt 0:00:02]} Rh8 {[%emt 0:00:03]} 33. Qg5 {[%emt 0:00:10]} Rbg8 {[%emt 0:00:08]} 34. Qd2 {[%emt 0:00:02]} Rxh1 {[%emt 0:00:20]} 35. Rxh1 {[%emt 0:00:01]} Qb5 {[%emt 0:00:00]} 36. Qc3 {[%emt 0:00:21]} Rb8 {[%emt 0:00:04]} 37. Rb1 {[%emt 0:00:03]} Rh8 {[%emt 0:00:02]} 38. Qe3 {[%emt 0:00:05]} Qb8 {[%emt 0:00:18]} 39. Bd1 {[%emt 0:00:10]} Rh5 {[%emt 0:00:06]} 40. Qe2 {[%emt 0:00:07]} Qh8 {[%emt 0:00:04]} 41. Qc2 {[%emt 0:00:33]} Rh1 {[%emt 0:00:01]} 42. Bxg4 {[%emt 0:00:06]} Nxg4 43. Rxh1 Qb8 {[%emt 0:00:05]} 44. Qd2 {[%emt 0:00:06]} Qb3 {[%emt 0:00:02]} 45. Qg5+ {[%emt 0:00:02]} Nf6 {[%emt 0:00:04]} 46. Rh6 {[%emt 0:00:02]} 1-0